[Event "Titled Tuesday Blitz May 30 Early 2023"]
[White "Estrada Nieto, Julian"]
[Black "Brown, Raehanna"]
[WhiteFideId "5101018"]
[BlackFideId "7402740"]
[WhiteElo "2161"]
[BlackElo "1655"]
[Result "1-0"]
[Round "03"]
[TimeControl "180+2"]
[Date "2023.05.30"]
[WhiteClock "0:00:07"]
[BlackClock "0:00:00"]

1. e4 {[%clk 0:03:00]}  c5 {[%clk 0:02:58]} 2. Nf3 {[%clk 0:03:01]}  Nc6 {[%clk 0:02:58]} 3. Bb5 {[%clk 0:03:00]}  g6 {[%clk 0:02:57]} 4. Bxc6 {[%clk 0:03:01]}  bxc6 {[%clk 0:02:57]} 5. O-O {[%clk 0:03:00]}  Bg7 {[%clk 0:02:57]} 6. Re1 {[%clk 0:03:00]}  e5 {[%clk 0:02:57]} 7. c3 {[%clk 0:03:00]}  Ne7 {[%clk 0:02:53]} 8. d4 {[%clk 0:03:00]}  cxd4 {[%clk 0:02:52]} 9. cxd4 {[%clk 0:03:01]}  exd4 {[%clk 0:02:46]} 10. Nxd4 {[%clk 0:03:01]}  O-O {[%clk 0:02:47]} 11. Nc3 {[%clk 0:03:01]}  Bb7 {[%clk 0:02:41]} 12. Bg5 {[%clk 0:03:00]}  h6 {[%clk 0:02:35]} 13. Bh4 {[%clk 0:02:58]}  g5 {[%clk 0:02:34]} 14. Bg3 {[%clk 0:02:58]}  d5 {[%clk 0:02:32]} 15. Nb3 {[%clk 0:02:36]}  d4 {[%clk 0:01:23]} 16. Na4 {[%clk 0:02:27]}  Ba6 {[%clk 0:01:15]} 17. Nac5 {[%clk 0:02:27]}  Bc4 {[%clk 0:01:13]} 18. Rc1 {[%clk 0:02:26]}  Bxb3 {[%clk 0:01:11]} 19. Qxb3 {[%clk 0:02:15]}  Qb6 {[%clk 0:01:01]} 20. Bd6 {[%clk 0:01:51]}  Rfe8 {[%clk 0:00:56]} 21. Qa3 {[%clk 0:01:26]}  Nc8 {[%clk 0:00:51]} 22. Bg3 {[%clk 0:01:05]}  Bf8 {[%clk 0:00:40]} 23. b4 {[%clk 0:01:02]}  a5 {[%clk 0:00:39]} 24. Nd7 {[%clk 0:00:55]}  Qd8 {[%clk 0:00:30]} 25. Nxf8 {[%clk 0:00:48]}  Rxf8 {[%clk 0:00:27]} 26. Rxc6 {[%clk 0:00:44]}  Nb6 {[%clk 0:00:15]} 27. bxa5 {[%clk 0:00:41]}  Nd7 {[%clk 0:00:12]} 28. Rxh6 {[%clk 0:00:40]}  Qxa5 {[%clk 0:00:10]} 29. Qxa5 {[%clk 0:00:39]}  Rxa5 {[%clk 0:00:11]} 30. h4 {[%clk 0:00:33]}  Kg7 {[%clk 0:00:09]} 31. hxg5 {[%clk 0:00:32]}  Rxg5 {[%clk 0:00:09]} 32. Rd6 {[%clk 0:00:31]}  Nc5 {[%clk 0:00:08]} 33. Rxd4 {[%clk 0:00:29]}  Ra8 {[%clk 0:00:08]} 34. Re2 {[%clk 0:00:21]}  Rg6 {[%clk 0:00:08]} 35. Rc4 {[%clk 0:00:17]}  Ne6 {[%clk 0:00:07]} 36. Be5+ {[%clk 0:00:16]}  Kf8 {[%clk 0:00:07]} 37. f4 {[%clk 0:00:15]}  Rg4 {[%clk 0:00:05]} 38. Bd6+ {[%clk 0:00:11]}  Kg7 {[%clk 0:00:05]} 39. f5 {[%clk 0:00:12]}  Ng5 {[%clk 0:00:05]} 40. Be5+ {[%clk 0:00:11]}  f6 {[%clk 0:00:04]} 41. Rc7+ {[%clk 0:00:10]}  Nf7 {[%clk 0:00:04]} 42. Bc3 {[%clk 0:00:05]}  Ra3 {[%clk 0:00:04]} 43. Rd2 {[%clk 0:00:03]}  Kh6 {[%clk 0:00:03]} 44. Rxf7 {[%clk 0:00:02]}  Rxc3 {[%clk 0:00:03]} 45. Rxf6+ {[%clk 0:00:03]}  Kg5 {[%clk 0:00:03]} 46. Rf2 {[%clk 0:00:04]}  Kxf6 {[%clk 0:00:03]} 47. Kh2 {[%clk 0:00:03]}  Rc1 {[%clk 0:00:03]} 48. Kh3 {[%clk 0:00:04]}  Rg5 {[%clk 0:00:03]} 49. g4 {[%clk 0:00:04]}  Rh1+ {[%clk 0:00:03]} 50. Kg3 {[%clk 0:00:04]}  Ra1 {[%clk 0:00:03]} 51. Kf4 {[%clk 0:00:04]}  Rd1 {[%clk 0:00:03]} 52. e5+ {[%clk 0:00:05]}  Kf7 {[%clk 0:00:02]} 53. Kxg5 {[%clk 0:00:05]}  Rd4 {[%clk 0:00:02]} 54. e6+ {[%clk 0:00:06]}  Ke8 {[%clk 0:00:00]} 55. Rb2 {[%clk 0:00:07]} 1-0


[Site "https://www.chess.com"]

[Event "Titled Tuesday Blitz May 30 Early 2023"]
[White "ChawitAp"]
[Black "Guevara Sanchez, Erick Marvin"]
[BlackFideId "6700136"]
[WhiteElo "2400"]
[BlackElo "2040"]
[Result "1-0"]
[Round "03"]
[TimeControl "180+2"]
[Date "2023.05.30"]
[WhiteClock "0:01:11"]
[BlackClock "0:00:08"]

1. d4 {[%clk 0:02:56]}  d5 {[%clk 0:02:57]} 2. Nf3 {[%clk 0:02:56]}  Nf6 {[%clk 0:02:56]} 3. c3 {[%clk 0:02:56]}  e6 {[%clk 0:02:54]} 4. Bg5 {[%clk 0:02:56]}  Be7 {[%clk 0:02:54]} 5. Nbd2 {[%clk 0:02:56]}  Ne4 {[%clk 0:02:53]} 6. Bxe7 {[%clk 0:02:54]}  Qxe7 {[%clk 0:02:52]} 7. Nxe4 {[%clk 0:02:54]}  dxe4 {[%clk 0:02:53]} 8. Nd2 {[%clk 0:02:55]}  f5 {[%clk 0:02:52]} 9. e3 {[%clk 0:02:54]}  e5 {[%clk 0:02:47]} 10. Bc4 {[%clk 0:02:49]}  exd4 {[%clk 0:02:45]} 11. cxd4 {[%clk 0:02:48]}  c6 {[%clk 0:02:38]} 12. O-O {[%clk 0:02:45]}  Be6 {[%clk 0:02:37]} 13. Qb3 {[%clk 0:02:42]}  Bxc4 {[%clk 0:02:35]} 14. Nxc4 {[%clk 0:02:43]}  Na6 {[%clk 0:01:41]} 15. f3 {[%clk 0:02:10]}  O-O-O {[%clk 0:01:14]} 16. fxe4 {[%clk 0:02:01]}  fxe4 {[%clk 0:01:15]} 17. Ne5 {[%clk 0:02:00]}  Rhf8 {[%clk 0:01:07]} 18. Qc2 {[%clk 0:01:56]}  Kb8 {[%clk 0:01:04]} 19. Qxe4 {[%clk 0:01:49]}  Rxf1+ {[%clk 0:00:51]} 20. Rxf1 {[%clk 0:01:48]}  Qb4 {[%clk 0:00:46]} 21. Qh4 {[%clk 0:01:35]}  Re8 {[%clk 0:00:37]} 22. Qg3 {[%clk 0:01:31]}  Nc7 {[%clk 0:00:34]} 23. Rf7 {[%clk 0:01:16]}  Qd6 {[%clk 0:00:08]} 24. Nd7+ {[%clk 0:01:11]} 1-0


[Site "https://www.chess.com"]

[Event "Titled Tuesday Blitz May 30 Early 2023"]
[White "Dwilewicz, Katarzyna"]
[Black "zano2023"]
[WhiteFideId "1148486"]
[WhiteElo "2065"]
[BlackElo "2152"]
[Result "1-0"]
[Round "03"]
[TimeControl "180+2"]
[Date "2023.05.30"]
[WhiteClock "0:01:34"]
[BlackClock "0:01:31"]

1. e4 {[%clk 0:03:00]}  e6 {[%clk 0:02:59]} 2. d4 {[%clk 0:02:58]}  d5 {[%clk 0:02:58]} 3. Nd2 {[%clk 0:02:59]}  Nf6 {[%clk 0:02:58]} 4. e5 {[%clk 0:02:59]}  Nfd7 {[%clk 0:02:58]} 5. Bd3 {[%clk 0:02:59]}  c5 {[%clk 0:02:58]} 6. c3 {[%clk 0:03:00]}  Nc6 {[%clk 0:02:58]} 7. Ne2 {[%clk 0:03:01]}  Qb6 {[%clk 0:02:58]} 8. Nf3 {[%clk 0:02:58]}  cxd4 {[%clk 0:02:57]} 9. cxd4 {[%clk 0:02:57]}  Be7 {[%clk 0:02:55]} 10. O-O {[%clk 0:02:57]}  O-O {[%clk 0:02:54]} 11. Ng3 {[%clk 0:02:44]}  f6 {[%clk 0:02:50]} 12. exf6 {[%clk 0:02:43]}  Bxf6 {[%clk 0:02:48]} 13. Qe2 {[%clk 0:02:15]}  Re8 {[%clk 0:02:30]} 14. Be3 {[%clk 0:01:51]}  Nxd4 {[%clk 0:02:21]} 15. Nxd4 {[%clk 0:01:50]}  Bxd4 {[%clk 0:02:19]} 16. Bxh7+ {[%clk 0:01:42]}  Kh8 {[%clk 0:01:58]} 17. Bg6 {[%clk 0:01:39]}  Bxe3 {[%clk 0:01:45]} 18. fxe3 {[%clk 0:01:38]}  Nf6 {[%clk 0:01:34]} 19. Rxf6 {[%clk 0:01:37]}  gxf6 {[%clk 0:01:31]} 20. Qh5+ {[%clk 0:01:33]}  Kg8 {[%clk 0:01:30]} 21. Qh7+ {[%clk 0:01:33]}  Kf8 {[%clk 0:01:31]} 22. Qf7# {[%clk 0:01:34]} 1-0


[Site "https://www.chess.com"]

[Event "Titled Tuesday Blitz May 30 Early 2023"]
[White "Novikova, Galina"]
[Black "Lakshmi C"]
[WhiteFideId "4157095"]
[BlackFideId "25035347"]
[WhiteElo "1953"]
[BlackElo "1942"]
[Result "1-0"]
[Round "03"]
[TimeControl "180+2"]
[Date "2023.05.30"]
[WhiteClock "0:01:29"]
[BlackClock "0:00:04"]

1. e4 {[%clk 0:03:00]}  c5 {[%clk 0:02:54]} 2. Nf3 {[%clk 0:03:00]}  Nc6 {[%clk 0:02:32]} 3. d4 {[%clk 0:03:00]}  cxd4 {[%clk 0:02:31]} 4. Nxd4 {[%clk 0:03:01]}  Nf6 {[%clk 0:02:31]} 5. Nc3 {[%clk 0:03:02]}  e5 {[%clk 0:02:32]} 6. Ndb5 {[%clk 0:03:02]}  d6 {[%clk 0:02:33]} 7. Bg5 {[%clk 0:03:02]}  a6 {[%clk 0:02:30]} 8. Na3 {[%clk 0:03:02]}  b5 {[%clk 0:02:30]} 9. Bxf6 {[%clk 0:03:03]}  gxf6 {[%clk 0:02:30]} 10. Nd5 {[%clk 0:03:04]}  f5 {[%clk 0:02:28]} 11. g3 {[%clk 0:03:04]}  fxe4 {[%clk 0:02:17]} 12. Bg2 {[%clk 0:03:02]}  Bf5 {[%clk 0:02:17]} 13. g4 {[%clk 0:02:53]}  Bg6 {[%clk 0:02:14]} 14. h4 {[%clk 0:02:53]}  h5 {[%clk 0:02:14]} 15. g5 {[%clk 0:02:53]}  Bg7 {[%clk 0:02:10]} 16. c3 {[%clk 0:02:44]}  O-O {[%clk 0:01:40]} 17. Qe2 {[%clk 0:02:43]}  Ne7 {[%clk 0:01:10]} 18. Nf6+ {[%clk 0:02:40]}  Bxf6 {[%clk 0:01:05]} 19. gxf6 {[%clk 0:02:40]}  Nd5 {[%clk 0:00:54]} 20. Bxe4 {[%clk 0:02:38]}  Nf4 {[%clk 0:00:53]} 21. Qf3 {[%clk 0:02:38]}  Bxe4 {[%clk 0:00:22]} 22. Qxe4 {[%clk 0:02:30]}  Qxf6 {[%clk 0:00:22]} 23. O-O-O {[%clk 0:02:28]}  d5 {[%clk 0:00:19]} 24. Rhg1+ {[%clk 0:02:20]}  Kh8 {[%clk 0:00:19]} 25. Qe3 {[%clk 0:02:05]}  Rad8 {[%clk 0:00:19]} 26. Nc2 {[%clk 0:02:05]}  Rfe8 {[%clk 0:00:10]} 27. Rde1 {[%clk 0:02:05]}  a5 {[%clk 0:00:09]} 28. Rg5 {[%clk 0:02:04]}  e4 {[%clk 0:00:07]} 29. Reg1 {[%clk 0:01:55]}  Re5 {[%clk 0:00:07]} 30. Nd4 {[%clk 0:01:41]}  Nd3+ {[%clk 0:00:06]} 31. Kb1 {[%clk 0:01:41]}  Rxg5 {[%clk 0:00:06]} 32. Rxg5 {[%clk 0:01:37]}  Nf4 {[%clk 0:00:06]} 33. Rf5 {[%clk 0:01:36]}  Qd6 {[%clk 0:00:05]} 34. Rxf4 {[%clk 0:01:35]}  b4 {[%clk 0:00:04]} 35. Rf5 {[%clk 0:01:30]}  bxc3 {[%clk 0:00:04]} 36. Rxh5+ {[%clk 0:01:29]}  Kg8 {[%clk 0:00:04]} 37. Qg5+ {[%clk 0:01:29]}  Kf8 {[%clk 0:00:04]} 38. Rh8# {[%clk 0:01:29]} 1-0


[Site "https://www.chess.com"]

[Event "Titled Tuesday Blitz May 30 Early 2023"]
[White "Kriti Mayur Patel"]
[Black "Sliwicki, Damian"]
[WhiteFideId "35061780"]
[BlackFideId "1127128"]
[WhiteElo "1306"]
[BlackElo "2030"]
[Result "0-1"]
[Round "03"]
[TimeControl "180+2"]
[Date "2023.05.30"]
[WhiteClock "0:02:03"]
[BlackClock "0:02:00"]

1. e4 {[%clk 0:03:00]}  c5 {[%clk 0:02:41]} 2. d4 {[%clk 0:03:01]}  cxd4 {[%clk 0:02:41]} 3. c3 {[%clk 0:03:01]}  g6 {[%clk 0:02:41]} 4. Nf3 {[%clk 0:03:01]}  Bg7 {[%clk 0:02:39]} 5. Bc4 {[%clk 0:03:02]}  d6 {[%clk 0:02:36]} 6. O-O {[%clk 0:03:01]}  dxc3 {[%clk 0:02:35]} 7. Nxc3 {[%clk 0:03:00]}  Nf6 {[%clk 0:02:35]} 8. Qe2 {[%clk 0:02:57]}  O-O {[%clk 0:02:35]} 9. Rd1 {[%clk 0:02:55]}  Qc7 {[%clk 0:02:29]} 10. Bf4 {[%clk 0:02:55]}  Bg4 {[%clk 0:02:26]} 11. h3 {[%clk 0:02:55]}  Bxf3 {[%clk 0:02:26]} 12. Qxf3 {[%clk 0:02:56]}  Qxc4 {[%clk 0:02:26]} 13. Rac1 {[%clk 0:02:53]}  Nc6 {[%clk 0:02:24]} 14. Bg5 {[%clk 0:02:36]}  Ne5 {[%clk 0:02:14]} 15. Qe3 {[%clk 0:02:27]}  Qb4 {[%clk 0:02:13]} 16. Bxf6 {[%clk 0:02:23]}  Bxf6 {[%clk 0:02:11]} 17. Nd5 {[%clk 0:02:23]}  Qxb2 {[%clk 0:02:11]} 18. Nxf6+ {[%clk 0:02:22]}  exf6 {[%clk 0:02:11]} 19. Rxd6 {[%clk 0:02:23]}  Rfd8 {[%clk 0:02:09]} 20. Rxf6 {[%clk 0:02:21]}  Nd3 {[%clk 0:02:04]} 21. Rd1 {[%clk 0:02:07]}  Qxf6 {[%clk 0:02:03]} 22. Rxd3 {[%clk 0:02:08]}  Rxd3 {[%clk 0:02:03]} 23. Qxd3 {[%clk 0:02:09]}  Rd8 {[%clk 0:02:03]} 24. Qc4 {[%clk 0:02:08]}  Rd1+ {[%clk 0:02:00]} 25. Kh2 {[%clk 0:02:03]}  Qf4+ {[%clk 0:02:00]} 0-1


[Site "https://www.chess.com"]

[Event "Titled Tuesday Blitz May 30 Early 2023"]
[White "Steenbekkers, Franck"]
[Black "Shtompel, Yuriy"]
[WhiteFideId "1004220"]
[BlackFideId "14168278"]
[WhiteElo "2109"]
[BlackElo "1844"]
[Result "0-1"]
[Round "03"]
[TimeControl "180+2"]
[Date "2023.05.30"]
[WhiteClock "0:01:25"]
[BlackClock "0:00:21"]

1. e4 {[%clk 0:03:00]}  c5 {[%clk 0:02:59]} 2. Nf3 {[%clk 0:02:59]}  d6 {[%clk 0:02:59]} 3. d4 {[%clk 0:02:57]}  cxd4 {[%clk 0:03:00]} 4. Nxd4 {[%clk 0:02:57]}  Nf6 {[%clk 0:03:00]} 5. Nc3 {[%clk 0:02:57]}  a6 {[%clk 0:03:00]} 6. Be2 {[%clk 0:02:57]}  e5 {[%clk 0:03:00]} 7. Nb3 {[%clk 0:02:56]}  Be6 {[%clk 0:03:00]} 8. Be3 {[%clk 0:02:55]}  Nbd7 {[%clk 0:03:00]} 9. O-O {[%clk 0:02:54]}  Qc7 {[%clk 0:03:00]} 10. Qd3 {[%clk 0:02:53]}  Rc8 {[%clk 0:02:59]} 11. f4 {[%clk 0:02:51]}  Be7 {[%clk 0:02:56]} 12. f5 {[%clk 0:02:49]}  Bc4 {[%clk 0:02:55]} 13. Qd2 {[%clk 0:02:47]}  b5 {[%clk 0:02:45]} 14. a3 {[%clk 0:02:46]}  O-O {[%clk 0:02:37]} 15. g4 {[%clk 0:02:44]}  h6 {[%clk 0:01:52]} 16. Rf2 {[%clk 0:02:40]}  Nb6 {[%clk 0:01:43]} 17. Bxh6 {[%clk 0:02:37]}  gxh6 {[%clk 0:01:38]} 18. Qxh6 {[%clk 0:02:36]}  Bxe2 {[%clk 0:01:15]} 19. Rxe2 {[%clk 0:02:34]}  Nh7 {[%clk 0:00:58]} 20. g5 {[%clk 0:02:33]}  Bxg5 {[%clk 0:00:51]} 21. Rg2 {[%clk 0:02:30]}  f6 {[%clk 0:00:51]} 22. h4 {[%clk 0:02:29]}  Qg7 {[%clk 0:00:49]} 23. Qxg7+ {[%clk 0:02:27]}  Kxg7 {[%clk 0:00:49]} 24. hxg5 {[%clk 0:02:26]}  Nxg5 {[%clk 0:00:50]} 25. Rd1 {[%clk 0:02:25]}  Nc4 {[%clk 0:00:50]} 26. Nd5 {[%clk 0:02:15]}  Kf7 {[%clk 0:00:47]} 27. Na5 {[%clk 0:02:07]}  Nxa5 {[%clk 0:00:43]} 28. Nxf6 {[%clk 0:02:05]}  Kxf6 {[%clk 0:00:36]} 29. Rxd6+ {[%clk 0:02:04]}  Ke7 {[%clk 0:00:37]} 30. Rxa6 {[%clk 0:02:04]}  Nc6 {[%clk 0:00:29]} 31. Rxg5 {[%clk 0:02:01]}  Rg8 {[%clk 0:00:29]} 32. Rxg8 {[%clk 0:02:00]}  Rxg8+ {[%clk 0:00:30]} 33. Kf2 {[%clk 0:01:59]}  Kd7 {[%clk 0:00:29]} 34. c3 {[%clk 0:01:55]}  Rh8 {[%clk 0:00:28]} 35. Kg2 {[%clk 0:01:53]}  Rh4 {[%clk 0:00:27]} 36. Kf3 {[%clk 0:01:52]}  Rf4+ {[%clk 0:00:25]} 37. Ke3 {[%clk 0:01:51]}  Rf1 {[%clk 0:00:25]} 38. b3 {[%clk 0:01:47]}  Re1+ {[%clk 0:00:25]} 39. Kd3 {[%clk 0:01:45]}  Rd1+ {[%clk 0:00:24]} 40. Ke3 {[%clk 0:01:45]}  Rc1 {[%clk 0:00:25]} 41. Kd3 {[%clk 0:01:45]}  Rb1 {[%clk 0:00:25]} 42. b4 {[%clk 0:01:44]}  Rd1+ {[%clk 0:00:25]} 43. Ke3 {[%clk 0:01:42]}  Re1+ {[%clk 0:00:25]} 44. Kd3 {[%clk 0:01:42]}  Rh1 {[%clk 0:00:23]} 45. a4 {[%clk 0:01:41]}  bxa4 {[%clk 0:00:21]} 46. b5 {[%clk 0:01:41]}  Nb8 {[%clk 0:00:21]} 47. Ra7+ {[%clk 0:01:40]}  Kd6 {[%clk 0:00:20]} 48. f6 {[%clk 0:01:39]}  Rf1 {[%clk 0:00:20]} 49. f7 {[%clk 0:01:39]}  Nd7 {[%clk 0:00:21]} 50. Rxa4 {[%clk 0:01:31]}  Nc5+ {[%clk 0:00:21]} 51. Kc4 {[%clk 0:01:29]}  Nxa4 {[%clk 0:00:21]} 52. Kb4 {[%clk 0:01:25]}  Nc5 {[%clk 0:00:21]} 0-1


[Site "https://www.chess.com"]

[Event "Titled Tuesday Blitz May 30 Early 2023"]
[White "Topalov, Aleksandar"]
[Black "Winkels, Marcel"]
[WhiteFideId "925659"]
[BlackFideId "1003887"]
[WhiteElo "2151"]
[BlackElo "1900"]
[Result "1-0"]
[Round "03"]
[TimeControl "180+2"]
[Date "2023.05.30"]
[WhiteClock "0:00:16"]
[BlackClock "0:00:00"]

1. b3 {[%clk 0:03:00]}  e5 {[%clk 0:02:59]} 2. Bb2 {[%clk 0:02:58]}  Nc6 {[%clk 0:02:59]} 3. c4 {[%clk 0:02:58]}  Nf6 {[%clk 0:02:57]} 4. e3 {[%clk 0:02:58]}  Bb4 {[%clk 0:02:54]} 5. a3 {[%clk 0:02:57]}  Be7 {[%clk 0:02:54]} 6. Nf3 {[%clk 0:02:56]}  d6 {[%clk 0:02:53]} 7. d4 {[%clk 0:02:55]}  Bg4 {[%clk 0:02:47]} 8. h3 {[%clk 0:02:53]}  Bxf3 {[%clk 0:02:46]} 9. Qxf3 {[%clk 0:02:52]}  O-O {[%clk 0:02:43]} 10. Bd3 {[%clk 0:02:51]}  Re8 {[%clk 0:02:41]} 11. O-O {[%clk 0:02:51]}  Bf8 {[%clk 0:02:40]} 12. Nd2 {[%clk 0:02:50]}  a5 {[%clk 0:02:38]} 13. Rad1 {[%clk 0:02:44]}  Qe7 {[%clk 0:02:33]} 14. Ne4 {[%clk 0:02:36]}  Nxe4 {[%clk 0:02:29]} 15. Bxe4 {[%clk 0:02:36]}  g6 {[%clk 0:02:29]} 16. Bxc6 {[%clk 0:02:33]}  bxc6 {[%clk 0:02:28]} 17. Qxc6 {[%clk 0:02:32]}  Rab8 {[%clk 0:02:28]} 18. Qa4 {[%clk 0:02:30]}  Bg7 {[%clk 0:02:22]} 19. b4 {[%clk 0:02:24]}  axb4 {[%clk 0:02:21]} 20. axb4 {[%clk 0:02:24]}  Ra8 {[%clk 0:02:21]} 21. Qb3 {[%clk 0:02:23]}  e4 {[%clk 0:02:14]} 22. b5 {[%clk 0:02:20]}  Kh8 {[%clk 0:02:10]} 23. d5 {[%clk 0:02:18]}  f5 {[%clk 0:02:08]} 24. Ra1 {[%clk 0:02:10]}  g5 {[%clk 0:02:01]} 25. Ra6 {[%clk 0:01:55]}  Rab8 {[%clk 0:01:45]} 26. Ra7 {[%clk 0:01:53]}  f4 {[%clk 0:01:35]} 27. Re1 {[%clk 0:01:25]}  f3 {[%clk 0:01:26]} 28. g3 {[%clk 0:01:19]}  Be5 {[%clk 0:01:15]} 29. Bxe5+ {[%clk 0:01:14]}  dxe5 {[%clk 0:01:11]} 30. Qc2 {[%clk 0:01:09]}  Qd7 {[%clk 0:01:01]} 31. Qxe4 {[%clk 0:01:03]}  Qxh3 {[%clk 0:00:55]} 32. Qxf3 {[%clk 0:01:03]}  Rf8 {[%clk 0:00:51]} 33. Qg2 {[%clk 0:00:52]}  Qg4 {[%clk 0:00:46]} 34. e4 {[%clk 0:00:48]}  Rbc8 {[%clk 0:00:32]} 35. c5 {[%clk 0:00:38]}  Rf6 {[%clk 0:00:27]} 36. Rf1 {[%clk 0:00:24]}  Rh6 {[%clk 0:00:18]} 37. f3 {[%clk 0:00:23]}  Qh5 {[%clk 0:00:12]} 38. g4 {[%clk 0:00:21]}  Qh4 {[%clk 0:00:08]} 39. Rf2 {[%clk 0:00:17]}  Rf6 {[%clk 0:00:05]} 40. Qh2 {[%clk 0:00:16]}  Rcf8 {[%clk 0:00:02]} 41. Qxh4 {[%clk 0:00:14]}  gxh4 {[%clk 0:00:03]} 42. Kg2 {[%clk 0:00:15]}  h3+ {[%clk 0:00:01]} 43. Kxh3 {[%clk 0:00:15]}  Rxf3+ {[%clk 0:00:01]} 44. Rxf3 {[%clk 0:00:16]}  Rxf3+ {[%clk 0:00:01]} 45. Kh4 {[%clk 0:00:16]}  Rc3 {[%clk 0:00:00]} 46. Rxc7 {[%clk 0:00:16]} 1-0


[Site "https://www.chess.com"]

[Event "Titled Tuesday Blitz May 30 Early 2023"]
[White "Blackwhite017"]
[Black "Kohler, Aran"]
[BlackFideId "1002856"]
[WhiteElo "2094"]
[BlackElo "2362"]
[Result "1-0"]
[Round "03"]
[TimeControl "180+2"]
[Date "2023.05.30"]
[WhiteClock "0:01:03"]
[BlackClock "0:00:00"]

1. e4 {[%clk 0:02:59]}  c5 {[%clk 0:02:56]} 2. Nf3 {[%clk 0:02:59]}  Nc6 {[%clk 0:02:56]} 3. d4 {[%clk 0:02:59]}  cxd4 {[%clk 0:02:55]} 4. Nxd4 {[%clk 0:03:00]}  Nf6 {[%clk 0:02:55]} 5. Nc3 {[%clk 0:03:01]}  e5 {[%clk 0:02:55]} 6. Ndb5 {[%clk 0:03:01]}  d6 {[%clk 0:02:56]} 7. Bg5 {[%clk 0:02:59]}  a6 {[%clk 0:02:51]} 8. Na3 {[%clk 0:02:59]}  b5 {[%clk 0:02:47]} 9. Nd5 {[%clk 0:02:59]}  Be7 {[%clk 0:02:42]} 10. Bxf6 {[%clk 0:02:59]}  Bxf6 {[%clk 0:02:34]} 11. c4 {[%clk 0:02:57]}  b4 {[%clk 0:02:32]} 12. Nc2 {[%clk 0:02:57]}  a5 {[%clk 0:02:31]} 13. Be2 {[%clk 0:02:57]}  O-O {[%clk 0:02:30]} 14. O-O {[%clk 0:02:58]}  Be6 {[%clk 0:02:23]} 15. Qd3 {[%clk 0:02:57]}  Bg5 {[%clk 0:02:09]} 16. Rfd1 {[%clk 0:02:44]}  f5 {[%clk 0:02:04]} 17. Bf3 {[%clk 0:02:42]}  f4 {[%clk 0:01:54]} 18. a3 {[%clk 0:02:35]}  Rb8 {[%clk 0:01:39]} 19. axb4 {[%clk 0:02:32]}  axb4 {[%clk 0:01:34]} 20. b3 {[%clk 0:02:32]}  Kh8 {[%clk 0:01:16]} 21. Ra4 {[%clk 0:02:27]}  Bh6 {[%clk 0:00:18]} 22. Ncxb4 {[%clk 0:02:09]}  Nd4 {[%clk 0:00:18]} 23. Ra3 {[%clk 0:01:41]}  g5 {[%clk 0:00:16]} 24. Nc2 {[%clk 0:01:31]}  Nxc2 {[%clk 0:00:08]} 25. Qxc2 {[%clk 0:01:32]}  g4 {[%clk 0:00:09]} 26. Be2 {[%clk 0:01:32]}  f3 {[%clk 0:00:07]} 27. Bf1 {[%clk 0:01:31]}  fxg2 {[%clk 0:00:06]} 28. Bxg2 {[%clk 0:01:32]}  Qh4 {[%clk 0:00:05]} 29. Ne3 {[%clk 0:01:05]}  Bf4 {[%clk 0:00:00]} 30. Nf1 {[%clk 0:01:03]} 1-0


[Site "https://www.chess.com"]

[Event "Titled Tuesday Blitz May 30 Early 2023"]
[White "Dominguez Rincon, Miller Duvan"]
[Black "Silvestre, Christian"]
[WhiteFideId "4406583"]
[BlackFideId "30956269"]
[WhiteElo "2013"]
[BlackElo "2360"]
[Result "0-1"]
[Round "03"]
[TimeControl "180+2"]
[Date "2023.05.30"]
[WhiteClock "0:00:00"]
[BlackClock "0:00:22"]

1. e4 {[%clk 0:03:00]}  c5 {[%clk 0:02:59]} 2. Nf3 {[%clk 0:03:00]}  e6 {[%clk 0:03:00]} 3. Nc3 {[%clk 0:02:59]}  a6 {[%clk 0:02:59]} 4. a4 {[%clk 0:02:58]}  Qc7 {[%clk 0:02:59]} 5. g3 {[%clk 0:02:57]}  b6 {[%clk 0:02:48]} 6. Bg2 {[%clk 0:02:56]}  Bb7 {[%clk 0:02:49]} 7. O-O {[%clk 0:02:56]}  d6 {[%clk 0:02:48]} 8. Re1 {[%clk 0:02:56]}  Nd7 {[%clk 0:02:48]} 9. d4 {[%clk 0:02:55]}  cxd4 {[%clk 0:02:46]} 10. Nxd4 {[%clk 0:02:56]}  Ngf6 {[%clk 0:02:46]} 11. h3 {[%clk 0:02:48]}  Be7 {[%clk 0:02:47]} 12. Kh2 {[%clk 0:02:43]}  h5 {[%clk 0:02:38]} 13. f4 {[%clk 0:02:36]}  Rc8 {[%clk 0:02:32]} 14. Be3 {[%clk 0:02:25]}  Nc5 {[%clk 0:02:27]} 15. f5 {[%clk 0:02:08]}  e5 {[%clk 0:02:19]} 16. Nf3 {[%clk 0:02:03]}  Ncxe4 {[%clk 0:02:06]} 17. Nxe4 {[%clk 0:01:34]}  Bxe4 {[%clk 0:02:04]} 18. c3 {[%clk 0:01:34]}  Bxf3 {[%clk 0:02:04]} 19. Qxf3 {[%clk 0:01:31]}  Ng4+ {[%clk 0:01:55]} 20. Kh1 {[%clk 0:01:28]}  Nxe3 {[%clk 0:01:55]} 21. Rxe3 {[%clk 0:01:27]}  h4 {[%clk 0:01:54]} 22. g4 {[%clk 0:01:27]}  O-O {[%clk 0:01:49]} 23. f6 {[%clk 0:00:47]}  Bxf6 {[%clk 0:01:48]} 24. Qf5 {[%clk 0:00:44]}  Qe7 {[%clk 0:01:38]} 25. Rf1 {[%clk 0:00:36]}  Bg5 {[%clk 0:01:37]} 26. Rd3 {[%clk 0:00:27]}  b5 {[%clk 0:01:20]} 27. Bd5 {[%clk 0:00:26]}  Rc7 {[%clk 0:01:13]} 28. axb5 {[%clk 0:00:22]}  axb5 {[%clk 0:01:12]} 29. Rdf3 {[%clk 0:00:20]}  Bf4 {[%clk 0:01:10]} 30. Re1 {[%clk 0:00:17]}  Qg5 {[%clk 0:01:07]} 31. Qe4 {[%clk 0:00:14]}  g6 {[%clk 0:01:04]} 32. Ref1 {[%clk 0:00:12]}  Kg7 {[%clk 0:01:03]} 33. Qb4 {[%clk 0:00:11]}  Rb8 {[%clk 0:01:01]} 34. Qb3 {[%clk 0:00:11]}  Qe7 {[%clk 0:00:53]} 35. Re1 {[%clk 0:00:08]}  Qd7 {[%clk 0:00:52]} 36. Ref1 {[%clk 0:00:07]}  Rc5 {[%clk 0:00:49]} 37. Rd1 {[%clk 0:00:05]}  Qc7 {[%clk 0:00:44]} 38. Rfd3 {[%clk 0:00:04]}  Rd8 {[%clk 0:00:42]} 39. Qa2 {[%clk 0:00:04]}  Rd7 {[%clk 0:00:38]} 40. Qb3 {[%clk 0:00:04]}  Qc8 {[%clk 0:00:35]} 41. Qa2 {[%clk 0:00:03]}  Rd8 {[%clk 0:00:34]} 42. Bxf7 {[%clk 0:00:02]}  Qc7 {[%clk 0:00:34]} 43. Bd5 {[%clk 0:00:02]}  Qe7 {[%clk 0:00:32]} 44. Qb1 {[%clk 0:00:02]}  Qg5 {[%clk 0:00:31]} 45. Rf3 {[%clk 0:00:02]}  Rb8 {[%clk 0:00:27]} 46. Qe4 {[%clk 0:00:02]}  Qe7 {[%clk 0:00:24]} 47. Rdf1 {[%clk 0:00:02]}  Qg5 {[%clk 0:00:24]} 48. Ba2 {[%clk 0:00:02]}  b4 {[%clk 0:00:24]} 49. Bb1 {[%clk 0:00:01]}  bxc3 {[%clk 0:00:23]} 50. bxc3 {[%clk 0:00:00]}  Rbc8 {[%clk 0:00:22]} 0-1


[Site "https://www.chess.com"]